fUSD/lending_fUSD_20260512
["ID","MTS","AMOUNT","RATE_DAILY","PERIOD"]
[422084202,1778559043000,-13408.04605855,0.00027168,2]
[422084191,1778559043000,-797.31647382,0.00026952,2]
[422084193,1778559043000,-152.99,0.00026989,2]
[422084203,1778559043000,-189.48,0.00027207,7]
[422084204,1778559043000,-189.48,0.00027305,2]
[422084194,1778559043000,-189.48,0.00027011,2]
[422084196,1778559043000,-284.23,0.00027089,7]
[422084199,1778559043000,-1058.25,0.000271,2]
[422084201,1778559043000,-189.48,0.00027109,7]
[422084205,1778559043000,-284.23,0.0002731,2]
[422084206,1778559043000,-312.76767965,0.00027368,2]
[422084218,1778559043000,-284.23,0.00027531,7]
[422084207,1778559043000,-1500.0,0.00027397,2]
[422084208,1778559043000,-3887.45,0.00027397,10]
[422084210,1778559043000,-7084.93,0.00027397,10]
[422084209,1778559043000,-198.62,0.00027397,2]
[422084211,1778559043000,-5904.11,0.00027397,10]
[422084215,1778559043000,-189.48,0.00027403,7]
[422084212,1778559043000,-4920.09,0.00027397,10]
[422084217,1778559043000,-189.48,0.00027501,30]
[422084228,1778559043000,-189.48,0.00027894,2]
[422084226,1778559043000,-1436.09,0.00027859,2]
[422084216,1778559043000,-503.0,0.00027486,5]
[422084223,1778559043000,-284.23,0.00027752,30]
[422084214,1778559043000,-1058.25,0.000274,2]
[422084259,1778559043000,-2922.29,0.000289,14]
[422084239,1778559043000,-284.23,0.00028194,7]
[422084253,1778559043000,-9637.63084045,0.00028789,2]
[422084294,1778559043000,-152.0,0.00031571,30]
[422084291,1778559043000,-267.08582342,0.00031321,2]
[422084295,1778559043000,-414.0,0.00031571,30]
[422084297,1778559043000,-158.0,0.00031571,30]
[422084292,1778559043000,-1000.0,0.000315,7]
[422084293,1778559043000,-154.0,0.00031571,30]
[422084300,1778559043000,-157.0,0.00031588,30]
[422084299,1778559043000,-250.0,0.00031588,30]
[422084302,1778559043000,-161.91522121,0.00031588,30]
[422084303,1778559043000,-16578.0,0.000318,2]
[422084301,1778559043000,-152.0,0.00031588,30]
[422084290,1778559043000,-150.0,0.00031081,2]
[422084304,1778559043000,-208.16996645,0.00032,120]
[422084307,1778559043000,-646.5,0.0003221,5]
[422084308,1778559043000,-195.16732431,0.0003245,2]
[422084306,1778559043000,-243.75,0.00032189,120]
[422084309,1778559043000,-1927.75419799,0.00032482,2]
[422084311,1778559043000,-152.0,0.00032571,30]
[422084313,1778559043000,-818.0,0.00032571,30]
[422084312,1778559043000,-414.0,0.00032571,30]
[422084310,1778559043000,-154.0,0.00032571,30]
[422084314,1778559043000,-158.0,0.00032571,30]
[422084315,1778559043000,-153.0,0.00032587,30]
[422084249,1778559043000,-500.62034088,0.00028723,5]
[422084305,1778559043000,-19107.03333196,0.00032174,2]
[422084296,1778559043000,-818.0,0.00031571,30]
[422084267,1778559043000,-500.0,0.00029999,2]
[422084289,1778559043000,-9637.63084045,0.00031011,2]
[422084298,1778559043000,-153.0,0.00031587,30]
[422084263,1778559043000,-850.0,0.00029938,5]
[422084265,1778559043000,-152.99,0.00029988,2]
[422084266,1778559043000,-575.48893914,0.00029999,2]
[422084274,1778559043000,-13408.04605855,0.00030351,2]
[422084268,1778559043000,-516.18484571,0.00029999,2]
[422084269,1778559043000,-4934.744682,0.0003,45]
[422084273,1778559043000,-646.5,0.00030239,2]
[422084272,1778559043000,-5677.64721949,0.00030137,120]
[422084270,1778559043000,-1501.86,0.0003,10]
[422084286,1778559043000,-157.0,0.00030588,30]
[422084276,1778559043000,-2922.29,0.000304,14]
[422084271,1778559043000,-198.62,0.00030137,2]
[422084278,1778559043000,-152.0,0.00030571,30]
[422084279,1778559043000,-414.0,0.00030571,30]
[422084287,1778559043000,-152.0,0.00030588,30]
[422084288,1778559043000,-158.0,0.00030588,30]
[422084282,1778559043000,-503.0,0.00030575,8]
[422084275,1778559043000,-1436.09,0.00030392,2]
[422084284,1778559043000,-154.0,0.00030588,30]
[422084280,1778559043000,-818.0,0.00030571,30]
[422084283,1778559043000,-153.0,0.00030587,30]
[422084281,1778559043000,-158.0,0.00030571,30]
[422084277,1778559043000,-154.0,0.00030571,30]
[422084285,1778559043000,-250.0,0.00030588,30]
[422084356,1778559044000,-153.0,0.00034587,30]
[422084345,1778559044000,-150.0,0.00034267,2]
[422084358,1778559044000,-152.0,0.00034588,30]
[422084354,1778559044000,-818.0,0.00034571,30]
[422084346,1778559044000,-1000.0,0.00034481,2]
[422084347,1778559044000,-1000.0,0.00034481,2]
[422084344,1778559044000,-646.5,0.00034182,7]
[422084349,1778559044000,-1150.17820742,0.00034481,2]
[422084352,1778559044000,-152.0,0.00034571,30]
[422084353,1778559044000,-414.0,0.00034571,30]
[422084355,1778559044000,-158.0,0.00034571,30]
[422084351,1778559044000,-154.0,0.00034571,30]
[422084359,1778559044000,-1500.0,0.00034795,2]
[422084374,1778559044000,-500.0,0.00035616,7]
[422084362,1778559044000,-808.953,0.00035202,2]
[422084360,1778559044000,-517.83,0.00034971,30]
[422084364,1778559044000,-154.0,0.00035571,30]
[422084365,1778559044000,-152.0,0.00035571,30]
[422084363,1778559044000,-349.874,0.00035202,2]
[422084366,1778559044000,-414.0,0.00035571,30]
[422084368,1778559044000,-162.74496523,0.00035571,30]
[422084379,1778559044000,-150.18,0.00035624,2]
[422084378,1778559044000,-150.0,0.00035624,2]
[422084370,1778559044000,-250.0,0.00035588,30]
[422084373,1778559044000,-500.0,0.00035616,7]
[422084348,1778559044000,-1000.0,0.00034481,2]
[422084361,1778559044000,-1500.0,0.000352,7]
[422084343,1778559044000,-31508.86366377,0.00034,7]
[422084329,1778559044000,-13408.04605855,0.00033534,2]
[422084339,1778559044000,-503.0,0.00033664,11]
[422084317,1778559044000,-157.0,0.00032588,30]
[422084318,1778559044000,-152.0,0.00032588,30]
[422084316,1778559044000,-250.0,0.00032588,30]
[422084319,1778559044000,-5530.0,0.000326,3]
[422084320,1778559044000,-150.0,0.00032636,2]
[422084322,1778559044000,-167.88923706,0.00032877,60]
[422084321,1778559044000,-198.62,0.00032877,2]
[422084323,1778559044000,-468.96,0.00032877,30]
[422084324,1778559044000,-2922.29,0.000329,14]
[422084325,1778559044000,-152.99,0.00032987,2]
[422084326,1778559044000,-9444.28853462,0.00033,30]
[422084330,1778559044000,-154.0,0.00033571,30]
[422084350,1778559044000,-267.08582342,0.00034562,2]
[422084331,1778559044000,-152.0,0.00033571,30]
[422084327,1778559044000,-208.16996645,0.00033,120]
[422084367,1778559044000,-818.0,0.00035571,30]
[422084332,1778559044000,-414.0,0.00033571,30]
[422084335,1778559044000,-153.0,0.00033587,30]
[422084334,1778559044000,-158.0,0.00033571,30]
[422084337,1778559044000,-161.20899857,0.00033588,30]
[422084340,1778559044000,-1351.612,0.00033765,36]
[422084336,1778559044000,-250.0,0.00033588,30]
[422084338,1778559044000,-152.0,0.00033588,30]
[422084341,1778559044000,-150.056,0.00033765,36]
[422084333,1778559044000,-818.0,0.00033571,30]
[422084342,1778559044000,-208.16996645,0.000339,120]
[422084328,1778559044000,-5530.0,0.000335,5]
[422084369,1778559044000,-153.0,0.00035587,30]
[422084357,1778559044000,-250.0,0.00034588,30]
[422084375,1778559044000,-511.68054206,0.00035616,7]
[422084415,1778559044000,-300.0,0.00037052,2]
[422084408,1778559044000,-345.22,0.00037048,2]
[422084414,1778559044000,-300.0,0.00037052,2]
[422084406,1778559044000,-168.01130534,0.00037048,2]
[422084413,1778559044000,-300.0,0.00037052,2]
[422084410,1778559044000,-300.0,0.00037052,2]
[422084411,1778559044000,-300.0,0.00037052,2]
[422084416,1778559044000,-300.0,0.00037052,2]
[422084412,1778559044000,-300.0,0.00037052,2]
[422084419,1778559044000,-300.0,0.00037052,2]
[422084426,1778559044000,-604.21547136,0.00037052,2]
[422084418,1778559044000,-300.00000199,0.00037052,2]
[422084423,1778559044000,-300.0,0.00037052,2]
[422084427,1778559044000,-300.0,0.00037052,2]
[422084430,1778559044000,-893.04482543,0.00037052,2]
[422084429,1778559044000,-1066.50381929,0.00037052,2]
[422084421,1778559044000,-492.49408754,0.00037052,2]
[422084428,1778559044000,-527.54022817,0.00037052,2]
[422084422,1778559044000,-300.0,0.00037052,2]
[422084425,1778559044000,-300.0,0.00037052,2]
[422084420,1778559044000,-491.19814231,0.00037052,2]
[422084424,1778559044000,-300.0,0.00037052,2]
[422084431,1778559044000,-725.78568352,0.00037052,2]
[422084433,1778559044000,-301.67321972,0.00037052,2]
[422084434,1778559044000,-300.0,0.00037052,2]
[422084432,1778559044000,-300.0,0.00037052,2]
[422084371,1778559044000,-152.0,0.00035588,30]
[422084417,1778559044000,-300.0,0.00037052,2]
[422084409,1778559044000,-300.0,0.00037052,2]
[422084435,1778559044000,-300.45062341,0.00037052,2]
[422084403,1778559044000,-503.0,0.00036753,14]
[422084407,1778559044000,-254.21,0.00037048,2]
[422084372,1778559044000,-250.0,0.00035616,120]
[422084376,1778559044000,-198.62,0.00035616,2]
[422084380,1778559044000,-931.438,0.00035632,2]
[422084381,1778559044000,-1006.275,0.00035632,2]
[422084387,1778559044000,-1000.0,0.00036048,2]
[422084392,1778559044000,-152.0,0.00036571,30]
[422084386,1778559044000,-1000.0,0.00036048,2]
[422084384,1778559044000,-152.99,0.00035986,2]
[422084383,1778559044000,-150.0,0.00035981,2]
[422084391,1778559044000,-154.0,0.00036571,30]
[422084388,1778559044000,-1000.0,0.00036048,2]
[422084382,1778559044000,-1273.818,0.00035632,2]
[422084389,1778559044000,-646.5,0.00036153,30]
[422084377,1778559044000,-200.0,0.00035624,2]
[422084404,1778559044000,-661.29,0.00036808,7]
[422084390,1778559044000,-250.0,0.00036164,120]
[422084402,1778559044000,-13408.04605855,0.00036717,2]
[422084398,1778559044000,-661.29,0.00036624,7]
[422084400,1778559044000,-150.11,0.0003669,30]
[422084399,1778559044000,-566.82,0.00036624,7]
[422084401,1778559044000,-250.0,0.00036712,120]
[422084397,1778559044000,-152.0,0.00036588,30]
[422084405,1778559044000,-289.63334435,0.00037044,2]
[422084393,1778559044000,-414.0,0.00036571,30]
[422084394,1778559044000,-818.0,0.00036571,30]
[422084395,1778559044000,-153.0,0.00036587,30]
[422084396,1778559044000,-250.0,0.00036588,30]
[422084472,1778559045000,-483.88780455,0.00037052,2]
[422084476,1778559045000,-548.44622372,0.00037052,2]
[422084475,1778559045000,-300.0,0.00037052,2]
[422084473,1778559045000,-309.70196001,0.00037052,2]
[422084469,1778559045000,-300.0,0.00037052,2]
[422084468,1778559045000,-300.0,0.00037052,2]
[422084470,1778559045000,-300.0,0.00037052,2]
[422084480,1778559045000,-300.0,0.00037052,2]
[422084479,1778559045000,-1094.29459015,0.00037052,2]
[422084474,1778559045000,-300.0,0.00037052,2]
[422084462,1778559045000,-300.0,0.00037052,2]
[422084471,1778559045000,-300.0,0.00037052,2]
[422084477,1778559045000,-300.0,0.00037052,2]
[422084492,1778559045000,-492.49408754,0.00037052,2]
[422084481,1778559045000,-300.0,0.00037052,2]
[422084483,1778559045000,-300.0,0.00037052,2]
[422084482,1778559045000,-300.0,0.00037052,2]
[422084493,1778559045000,-300.0,0.00037052,2]
[422084485,1778559045000,-300.0,0.00037052,2]
[422084486,1778559045000,-300.0,0.00037052,2]
[422084488,1778559045000,-300.0,0.00037052,2]
[422084487,1778559045000,-300.0,0.00037052,2]
[422084490,1778559045000,-300.0,0.00037052,2]
[422084491,1778559045000,-300.0,0.00037052,2]
[422084489,1778559045000,-300.0,0.00037052,2]
[422084461,1778559045000,-463.6616139,0.00037052,2]
[422084495,1778559045000,-300.0,0.00037052,2]
[422084478,1778559045000,-300.0,0.00037052,2]
[422084465,1778559045000,-451.72868137,0.00037052,2]
[422084448,1778559045000,-300.0,0.00037052,2]
[422084463,1778559045000,-576.93890108,0.00037052,2]
[422084494,1778559045000,-364.41022781,0.00037052,2]
[422084439,1778559045000,-300.0,0.00037052,2]
[422084438,1778559045000,-300.0,0.00037052,2]
[422084441,1778559045000,-300.0,0.00037052,2]
[422084440,1778559045000,-372.7203181,0.00037052,2]
[422084437,1778559045000,-300.0,0.00037052,2]
[422084436,1778559045000,-300.0,0.00037052,2]
[422084442,1778559045000,-853.86030012,0.00037052,2]
[422084451,1778559045000,-309.46605895,0.00037052,2]
[422084454,1778559045000,-300.0,0.00037052,2]
[422084445,1778559045000,-300.0,0.00037052,2]
[422084450,1778559045000,-1146.71946024,0.00037052,2]
[422084444,1778559045000,-1911.66155628,0.00037052,2]
[422084452,1778559045000,-300.0,0.00037052,2]
[422084443,1778559045000,-300.0,0.00037052,2]
[422084453,1778559045000,-864.10865205,0.00037052,2]
[422084449,1778559045000,-300.0,0.00037052,2]
[422084447,1778559045000,-526.68525168,0.00037052,2]
[422084446,1778559045000,-343.84381003,0.00037052,2]
[422084455,1778559045000,-1809.24690158,0.00037052,2]
[422084460,1778559045000,-300.0,0.00037052,2]
[422084458,1778559045000,-300.0,0.00037052,2]
[422084457,1778559045000,-300.0,0.00037052,2]
[422084459,1778559045000,-310.77293504,0.00037052,2]
[422084456,1778559045000,-300.0,0.00037052,2]
[422084466,1778559045000,-300.0,0.00037052,2]
[422084467,1778559045000,-300.0,0.00037052,2]
[422084464,1778559045000,-300.0,0.00037052,2]
[422084496,1778559045000,-300.0,0.00037052,2]
[422084484,1778559045000,-300.0,0.00037052,2]
[422084498,1778559045000,-300.0,0.00037052,2]
[422084528,1778559045000,-300.0,0.00037052,2]
[422084527,1778559045000,-309.46605895,0.00037052,2]
[422084532,1778559045000,-300.0,0.00037052,2]
[422084534,1778559045000,-300.0,0.00037052,2]
[422084536,1778559045000,-300.0,0.00037052,2]
[422084543,1778559045000,-300.0,0.00037052,2]
[422084542,1778559045000,-300.0,0.00037052,2]
[422084544,1778559045000,-300.0,0.00037052,2]
[422084533,1778559045000,-300.0,0.00037052,2]
[422084538,1778559045000,-300.0,0.00037052,2]
[422084541,1778559045000,-451.72868137,0.00037052,2]
[422084535,1778559045000,-310.77293504,0.00037052,2]
[422084539,1778559045000,-576.93890108,0.00037052,2]
[422084540,1778559045000,-300.0,0.00037052,2]
[422084537,1778559045000,-463.6616139,0.00037052,2]
[422084546,1778559045000,-300.0,0.00037052,2]
[422084545,1778559045000,-300.0,0.00037052,2]
[422084548,1778559045000,-483.88780455,0.00037052,2]
[422084547,1778559045000,-300.0,0.00037052,2]
[422084550,1778559045000,-250.0,0.00037059,7]
[422084554,1778559045000,-782.53,0.000373,7]
[422084553,1778559045000,-195.6175,0.00037279,13]
[422084555,1778559045000,-191.91529612,0.00037337,2]
[422084551,1778559045000,-250.0,0.0003726,120]
[422084552,1778559045000,-167.75,0.00037279,13]
[422084557,1778559045000,-1000.0,0.00037615,2]
[422084558,1778559045000,-150.0,0.0003778,2]
[422084523,1778559045000,-343.84381003,0.00037052,2]
[422084526,1778559045000,-1146.71946024,0.00037052,2]
[422084549,1778559045000,-309.70196001,0.00037052,2]
[422084525,1778559045000,-300.0,0.00037052,2]
[422084524,1778559045000,-300.0,0.00037052,2]
[422084502,1778559045000,-527.54022817,0.00037052,2]
[422084500,1778559045000,-300.0,0.00037052,2]
[422084501,1778559045000,-300.0,0.00037052,2]
[422084499,1778559045000,-604.21547136,0.00037052,2]
[422084503,1778559045000,-300.0,0.00037052,2]
[422084504,1778559045000,-1066.50381929,0.00037052,2]
[422084507,1778559045000,-300.0,0.00037052,2]
[422084506,1778559045000,-300.00000001,0.00037052,2]
[422084508,1778559045000,-725.78568352,0.00037052,2]
[422084513,1778559045000,-300.0,0.00037052,2]
[422084510,1778559045000,-416.06801091,0.00037052,2]
[422084505,1778559045000,-893.04482543,0.00037052,2]
[422084556,1778559045000,-1000.0,0.00037615,2]
[422084497,1778559045000,-300.0,0.00037052,2]
[422084514,1778559045000,-300.0,0.00037052,2]
[422084515,1778559045000,-300.0,0.00037052,2]
[422084521,1778559045000,-300.0,0.00037052,2]
[422084518,1778559045000,-853.86030012,0.00037052,2]
[422084529,1778559045000,-864.10865205,0.00037052,2]
[422084531,1778559045000,-1809.24690158,0.00037052,2]
[422084530,1778559045000,-300.0,0.00037052,2]
[422084520,1778559045000,-1911.66155628,0.00037052,2]
[422084516,1778559045000,-300.0,0.00037052,2]
[422084509,1778559045000,-301.67321972,0.00037052,2]
[422084519,1778559045000,-300.0,0.00037052,2]
[422084511,1778559045000,-300.0,0.00037052,2]
[422084522,1778559045000,-526.68525168,0.00037052,2]
[422084512,1778559045000,-300.45062341,0.00037052,2]
[422084517,1778559045000,-300.0,0.00037052,2]
[422084588,1778559046000,-482.778366,0.00038337,7]
[422084589,1778559046000,-482.778366,0.00038337,7]
[422084599,1778559046000,-299.42619551,0.00038356,2]
[422084596,1778559046000,-500.0,0.00038356,2]
[422084598,1778559046000,-500.0,0.00038356,2]
[422084600,1778559046000,-505.95760392,0.00038356,2]
[422084603,1778559046000,-231.88832598,0.00038356,2]
[422084602,1778559046000,-150.0,0.00038356,2]
[422084604,1778559046000,-1000.0,0.00038356,7]
[422084591,1778559046000,-3108.1794,0.00038351,2]
[422084597,1778559046000,-500.0,0.00038356,2]
[422084605,1778559046000,-1000.0,0.00038356,7]
[422084594,1778559046000,-500.0,0.00038356,2]
[422084592,1778559046000,-901.41552933,0.00038356,7]
[422084593,1778559046000,-500.0,0.00038356,2]
[422084595,1778559046000,-500.0,0.00038356,2]
[422084586,1778559046000,-482.778366,0.00038337,7]
[422084607,1778559046000,-308.95302127,0.00038356,2]
[422084610,1778559046000,-250.0,0.00038359,5]
[422084616,1778559046000,-195.6175,0.00038375,13]
[422084617,1778559046000,-1065.11,0.00038424,2]
[422084606,1778559046000,-931.8569684,0.00038356,7]
[422084608,1778559046000,-1562.0,0.00038356,30]
[422084609,1778559046000,-150.0,0.00038356,5]
[422084601,1778559046000,-250.0,0.00038356,120]
[422084587,1778559046000,-482.778366,0.00038337,7]
[422084579,1778559046000,-151.0,0.00038337,7]
[422084590,1778559046000,-39326.1736,0.00038337,30]
[422084611,1778559046000,-350.0,0.00038362,5]
[422084559,1778559046000,-267.08582342,0.00037802,2]
[422084561,1778559046000,-195.6175,0.00037827,13]
[422084565,1778559046000,-150.11,0.0003784,60]
[422084560,1778559046000,-250.0,0.00037808,120]
[422084562,1778559046000,-435.0,0.00037836,30]
[422084563,1778559046000,-872.0,0.00037836,30]
[422084566,1778559046000,-205.5872318,0.0003788,2]
[422084564,1778559046000,-958.0,0.00037836,30]
[422084578,1778559046000,-2218.0,0.00038329,120]
[422084568,1778559046000,-1100.0,0.000379,13]
[422084567,1778559046000,-150.63637423,0.00037889,7]
[422084569,1778559046000,-159.96020315,0.00038,15]
[422084575,1778559046000,-1272.0,0.00038329,120]
[422084572,1778559046000,-238496.55667891,0.00038,2]
[422084571,1778559046000,-459.0448683,0.00038,2]
[422084573,1778559046000,-275.32714793,0.000381,33]
[422084576,1778559046000,-1272.0,0.00038329,120]
[422084577,1778559046000,-158.82843331,0.00038329,120]
[422084574,1778559046000,-646.5,0.00038125,30]
[422084582,1778559046000,-1136.281255,0.00038337,7]
[422084581,1778559046000,-151.0,0.00038337,7]
[422084585,1778559046000,-1136.281255,0.00038337,7]
[422084583,1778559046000,-1136.281255,0.00038337,7]
[422084580,1778559046000,-151.0,0.00038337,7]
[422084584,1778559046000,-1136.281255,0.00038337,7]
[422084570,1778559046000,-471.48952384,0.00038,2]
[422084615,1778559046000,-701.35194092,0.00038373,5]
[422084612,1778559046000,-450.0,0.00038364,5]
[422084646,1778559046000,-150.11,0.0003899,120]
[422084647,1778559046000,-1007.29138247,0.00039,2]
[422084648,1778559046000,-3110.99889039,0.00039,14]
[422084649,1778559046000,-2021.12940849,0.00039,120]
[422084651,1778559046000,-2054.61230019,0.00039,120]
[422084653,1778559046000,-3108.1794,0.00039036,2]
[422084650,1778559046000,-497.961043,0.00039,120]
[422084654,1778559046000,-1000.0,0.00039043,120]
[422084652,1778559046000,-1121.2875692,0.00039,7]
[422084655,1778559046000,-2922.29,0.000391,14]
[422084656,1778559046000,-3989.35,0.00039114,120]
[422084668,1778559046000,-5000.0,0.00039536,2]
[422084659,1778559046000,-1000.0,0.00039183,2]
[422084663,1778559046000,-782.53,0.000394,30]
[422084657,1778559046000,-3108.1794,0.00039173,2]
[422084665,1778559046000,-3108.1794,0.00039447,2]
[422084661,1778559046000,-602.743928,0.00039249,2]
[422084660,1778559046000,-38542.17374256,0.00039249,2]
[422084662,1778559046000,-3108.1794,0.0003931,2]
[422084664,1778559046000,-3989.38,0.0003944,120]
[422084667,1778559046000,-5026.19770332,0.00039536,2]
[422084666,1778559046000,-1562.0,0.00039452,30]
[422084669,1778559046000,-5000.0,0.00039536,2]
[422084670,1778559046000,-5000.0,0.00039536,2]
[422084613,1778559046000,-550.0,0.00038367,5]
[422084644,1778559046000,-200.0,0.00038919,6]
[422084645,1778559046000,-200.0,0.00038919,6]
[422084658,1778559046000,-1562.0,0.00039178,30]
[422084639,1778559046000,-2000.0,0.000389,7]
[422084614,1778559046000,-650.0,0.0003837,5]
[422084643,1778559046000,-200.0,0.00038919,6]
[422084619,1778559046000,-1065.11,0.00038426,2]
[422084629,1778559046000,-269.189159,0.00038428,30]
[422084622,1778559046000,-1065.1,0.00038428,2]
[422084621,1778559046000,-1065.11,0.00038426,2]
[422084620,1778559046000,-1065.11,0.00038426,2]
[422084623,1778559046000,-1065.11,0.00038428,2]
[422084628,1778559046000,-269.189159,0.00038428,30]
[422084626,1778559046000,-269.189159,0.00038428,30]
[422084624,1778559046000,-1065.11,0.00038428,2]
[422084627,1778559046000,-151.0,0.00038428,30]
[422084625,1778559046000,-269.189159,0.00038428,30]
[422084618,1778559046000,-1065.11,0.00038424,2]
[422084631,1778559046000,-49633.30527496,0.000385,2]
[422084642,1778559046000,-200.0,0.00038919,6]
[422084630,1778559046000,-3108.1794,0.00038488,2]
[422084638,1778559046000,-3108.1794,0.00038899,2]
[422084636,1778559046000,-3108.1794,0.00038762,2]
[422084640,1778559046000,-374.05077924,0.00038904,120]
[422084637,1778559046000,-5406.55341866,0.00038834,2]
[422084635,1778559046000,-183.579,0.00038717,120]
[422084632,1778559046000,-3108.1794,0.00038625,2]
[422084633,1778559046000,-1562.0,0.0003863,30]
[422084634,1778559046000,-614.79,0.000387,60]
[422084641,1778559046000,-1562.0,0.00038904,30]
[422084711,1778559047000,-213.2,0.0004,120]
[422084709,1778559047000,-1562.0,0.0004,30]
[422084713,1778559047000,-816.69,0.0004,120]
[422084708,1778559047000,-3050.84825275,0.00039999,2]
[422084715,1778559047000,-22500.0,0.0004,120]
[422084704,1778559047000,-151.0,0.00039991,30]
[422084710,1778559047000,-17572.45,0.0004,120]
[422084707,1778559047000,-3108.1794,0.00039995,2]
[422084706,1778559047000,-393.85408388,0.00039995,120]
[422084702,1778559047000,-1100.0,0.000399,14]
[422084712,1778559047000,-22499.97,0.0004,120]
[422084714,1778559047000,-400.87,0.0004,120]
[422084718,1778559047000,-1718.48,0.0004,14]
[422084729,1778559047000,-5101.86705403,0.0004,120]
[422084716,1778559047000,-207.14,0.0004,120]
[422084719,1778559047000,-161.0,0.0004,120]
[422084721,1778559047000,-25000.0,0.0004,15]
[422084724,1778559047000,-19234.67559057,0.0004,15]
[422084720,1778559047000,-160.0,0.0004,120]
[422084723,1778559047000,-152.0,0.0004,120]
[422084722,1778559047000,-159.20710515,0.0004,7]
[422084730,1778559047000,-152.28168079,0.0004,60]
[422084726,1778559047000,-435.90497554,0.0004,7]
[422084725,1778559047000,-586.71014189,0.0004,120]
[422084727,1778559047000,-22697.64920365,0.0004,120]
[422084705,1778559047000,-25000.0,0.00039991,15]
[422084717,1778559047000,-754.89,0.0004,120]
[422084695,1778559047000,-5800.0,0.00039834,14]
[422084679,1778559047000,-3108.1794,0.00039721,2]
[422084696,1778559047000,-503.0,0.00039842,18]
[422084674,1778559047000,-937.0936,0.00039622,30]
[422084672,1778559047000,-151.0,0.00039536,30]
[422084673,1778559047000,-3108.1794,0.00039584,2]
[422084677,1778559047000,-500.0,0.00039671,60]
[422084675,1778559047000,-150.0,0.00039669,2]
[422084728,1778559047000,-1778.28255896,0.0004,120]
[422084678,1778559047000,-1253.0001,0.00039716,120]
[422084681,1778559047000,-300.0,0.00039726,120]
[422084680,1778559047000,-1562.0,0.00039726,30]
[422084682,1778559047000,-300.0,0.00039726,120]
[422084683,1778559047000,-300.0,0.00039726,120]
[422084685,1778559047000,-195.6175,0.00039745,13]
[422084689,1778559047000,-166.0,0.0003979,11]
[422084686,1778559047000,-5800.0,0.00039764,14]
[422084687,1778559047000,-3989.38,0.00039765,120]
[422084693,1778559047000,-5800.0,0.00039817,14]
[422084684,1778559047000,-300.0,0.00039726,120]
[422084692,1778559047000,-5800.0,0.00039809,14]
[422084690,1778559047000,-5800.0,0.00039792,14]
[422084671,1778559047000,-5000.0,0.00039536,2]
[422084688,1778559047000,-5800.0,0.00039783,14]
[422084694,1778559047000,-5800.0,0.00039826,14]
[422084697,1778559047000,-5800.0,0.00039843,14]
[422084701,1778559047000,-5580.70732808,0.000399,120]
[422084700,1778559047000,-5800.0,0.0003986,14]
[422084698,1778559047000,-5800.0,0.00039851,14]
[422084703,1778559047000,-13408.04605855,0.000399,15]
[422084699,1778559047000,-3108.1794,0.00039858,2]
[422084732,1778559047000,-318.39984985,0.0004,120]
[422084676,1778559047000,-500.0,0.00039671,60]
[422084745,1778559047000,-7963.07703878,0.0004,120]
[422084766,1778559047000,-500.0,0.0004,120]
[422084759,1778559047000,-151.0,0.0004,30]
[422084769,1778559047000,-500.0,0.0004,120]
[422084770,1778559047000,-500.0,0.0004,120]